fUSD/lending_fUSD_20240426
["ID","MTS","AMOUNT","RATE_DAILY","PERIOD"]
[323623517,1714143052726,-500.0,0.00011927,2]
[323623518,1714143052735,-500.0,0.00011927,2]
[323623519,1714143052744,-644.68,0.00011927,2]
[323623520,1714143052753,-500.0,0.00011927,2]
[323623521,1714143052763,-249.46,0.00011927,2]
[323623522,1714143052774,-500.0,0.00011927,2]
[323623523,1714143052783,-365.02,0.00011927,2]
[323623524,1714143052795,-500.0,0.00011927,2]
[323623525,1714143052805,-500.0,0.00011927,2]
[323623526,1714143052815,-500.0,0.00011927,2]
[323623527,1714143052824,-500.0,0.00011927,2]
[323623528,1714143052833,-242.55,0.00011927,2]
[323623529,1714143052842,-500.0,0.00011927,2]
[323623530,1714143052851,-500.0,0.00011927,2]
[323623531,1714143052860,-1237.16,0.00011927,2]
[323623532,1714143052870,-312.83,0.00011927,2]
[323623533,1714143052879,-500.0,0.00011927,2]
[323623534,1714143052889,-600.53,0.00011927,2]
[323623535,1714143052898,-500.0,0.00011927,2]
[323623536,1714143052908,-500.0,0.00011927,2]
[323623537,1714143052917,-436.76893967,0.00011927,2]
[323623538,1714143052927,-2519.53,0.00011927,2]
[323623539,1714143052936,-500.0,0.00011927,2]
[323623540,1714143052945,-608.0,0.00011927,2]
[323623541,1714143052954,-281.43,0.00011927,2]
[323623542,1714143052964,-500.0,0.00011927,2]
[323623543,1714143052973,-500.0,0.00011927,2]
[323623544,1714143052983,-500.0,0.00011927,2]
[323623545,1714143052992,-12753.53,0.00011927,2]
[323623546,1714143053000,-500.0,0.00011927,2]
[323623547,1714143053010,-683.39,0.00011927,2]
[323623548,1714143053019,-558.38,0.00011939,2]
[323623549,1714143053029,-177.70069917,0.00011939,2]
[323623550,1714143053038,-654.88,0.00011939,2]
[323623551,1714143053047,-500.0,0.00011939,2]
[323623552,1714143053056,-500.0,0.00011939,2]
[323623553,1714143053066,-500.0,0.00011939,2]
[323623554,1714143053075,-500.0,0.00011939,2]
[323623555,1714143053084,-500.0,0.00011939,2]
[323623556,1714143053094,-965.57,0.00011939,2]
[323623557,1714143053103,-500.0,0.00011939,2]
[323623558,1714143053112,-365.61679201,0.00011939,2]
[323623559,1714143053122,-500.0,0.00011939,2]
[323623560,1714143053131,-500.0,0.00011939,2]
[323623561,1714143053140,-500.0,0.00011939,2]
[323623562,1714143053156,-500.0,0.00011939,2]
[323623563,1714143053165,-500.0,0.00011939,2]
[323623564,1714143053175,-778.2,0.00011939,2]
[323623565,1714143053184,-500.0,0.00011939,2]
[323623566,1714143053194,-509.43,0.00011939,2]
[323623567,1714143053203,-500.0,0.00011939,2]
[323623568,1714143053212,-500.0,0.00011939,2]
[323623569,1714143053222,-502.26946921,0.00011939,2]
[323623570,1714143053232,-500.0,0.00011939,2]
[323623571,1714143053243,-500.0,0.00011939,2]
[323623572,1714143053252,-500.0,0.00011939,2]
[323623573,1714143053261,-500.0,0.00011939,2]
[323623574,1714143053270,-500.0,0.00011939,2]
[323623575,1714143053280,-621.04,0.00011939,2]
[323623576,1714143053289,-783.5,0.00011939,2]
[323623577,1714143053298,-519.69,0.00011939,2]
[323623578,1714143053307,-500.0,0.00011939,2]
[323623579,1714143053317,-500.0,0.00011939,2]
[323623580,1714143053326,-500.0,0.00011939,2]
[323623581,1714143053335,-500.0,0.00011939,2]
[323623582,1714143053345,-500.0,0.00011939,2]
[323623583,1714143053353,-500.0,0.00011939,2]
[323623584,1714143053362,-500.0,0.00011939,2]
[323623585,1714143053371,-500.0,0.00011939,2]
[323623586,1714143053381,-827.15,0.00011939,2]
[323623587,1714143053390,-500.0,0.00011939,2]
[323623588,1714143053399,-500.0,0.00011939,2]
[323623589,1714143053408,-500.0,0.00011939,2]
[323623590,1714143053417,-500.0,0.00011939,2]
[323623591,1714143053426,-500.0,0.00011939,2]
[323623592,1714143053435,-374.27836177,0.00011939,2]
[323623593,1714143053444,-519.05756618,0.00011939,2]
[323623594,1714143053454,-500.0,0.00011939,2]
[323623595,1714143053463,-725.47,0.00011939,2]
[323623596,1714143053473,-500.0,0.00011939,2]
[323623597,1714143053482,-559.81,0.00011939,2]
[323623598,1714143053494,-500.0,0.00011939,2]
[323623599,1714143053670,-267.26695709,0.00011939,2]
[323623600,1714143053680,-500.0,0.00011939,2]
[323623601,1714143053690,-500.0,0.00011939,2]
[323623602,1714143053700,-500.0,0.00011939,2]
[323623603,1714143053709,-538.66,0.00011939,2]
[323623604,1714143053718,-500.0,0.00011939,2]
[323623605,1714143053728,-500.0,0.00011939,2]
[323623606,1714143053739,-500.0,0.00011939,2]
[323623607,1714143053749,-500.0,0.00011939,2]
[323623608,1714143053758,-500.0,0.00011939,2]
[323623609,1714143053768,-500.0,0.00011939,2]
[323623610,1714143053777,-500.0,0.00011939,2]
[323623611,1714143053787,-593.58,0.00011939,2]
[323623612,1714143053797,-864.4,0.00011939,2]
[323623613,1714143053807,-724.77,0.00011939,2]
[323623614,1714143053816,-500.0,0.00011939,2]
[323623615,1714143053826,-500.0,0.00011939,2]
[323623616,1714143053835,-500.0,0.00011939,2]
[323623617,1714143053844,-500.0,0.00011939,2]
[323623618,1714143053854,-794.48,0.00011939,2]
[323623619,1714143053863,-500.0,0.00011939,2]
[323623620,1714143053872,-500.0,0.00011939,2]
[323623621,1714143053881,-500.0,0.00011939,2]
[323623622,1714143053891,-500.0,0.00011939,2]
[323623623,1714143053900,-1121.19,0.00011939,2]
[323623624,1714143053909,-500.0,0.00011939,2]
[323623625,1714143053919,-750.25,0.00011939,2]
[323623626,1714143053928,-500.0,0.00011939,2]
[323623627,1714143053937,-500.0,0.00011939,2]
[323623628,1714143053946,-504.06575479,0.00011939,2]
[323623629,1714143053956,-302.45,0.00011939,2]
[323623630,1714143053965,-500.0,0.00011939,2]
[323623631,1714143053975,-500.0,0.00011939,2]
[323623632,1714143053986,-873.25,0.00011939,2]
[323623633,1714143053995,-500.0,0.00011939,2]
[323623634,1714143054004,-500.0,0.00011939,2]
[323623635,1714143054012,-500.0,0.00011939,2]
[323623636,1714143054021,-500.0,0.00011939,2]
[323623637,1714143054031,-2213.64,0.00011939,2]
[323623638,1714143054039,-921.5,0.00011939,2]
[323623639,1714143054049,-501.58808792,0.00011939,2]
[323623640,1714143054058,-501.18268518,0.00011939,2]
[323623641,1714143054067,-500.0,0.00011939,2]
[323623642,1714143054076,-500.0,0.00011939,2]
[323623643,1714143054085,-500.0,0.00011939,2]
[323623644,1714143054094,-500.0,0.00011939,2]
[323623645,1714143054103,-500.0,0.00011939,2]
[323623646,1714143054112,-500.0,0.00011939,2]
[323623647,1714143054121,-500.0,0.00011939,2]
[323623648,1714143054130,-1404.314102,0.00011939,2]
[323623649,1714143054139,-500.0,0.00011939,2]
[323623650,1714143054150,-1404.314102,0.00011939,2]
[323623651,1714143054163,-500.0,0.00011939,2]
[323623652,1714143054172,-500.0,0.00011939,2]
[323623653,1714143054181,-500.0,0.00011939,2]
[323623654,1714143054190,-199.66,0.00011939,2]
[323623655,1714143054199,-500.0,0.00011939,2]
[323623656,1714143054208,-500.0,0.00011939,2]
[323623657,1714143054217,-657.72,0.00011939,2]
[323623658,1714143054226,-500.0,0.00011939,2]
[323623659,1714143054236,-500.0,0.00011939,2]
[323623660,1714143054245,-618.22,0.00011939,2]
[323623661,1714143054254,-500.0,0.00011939,2]
[323623662,1714143054264,-500.0,0.00011939,2]
[323623663,1714143054273,-193.27,0.00011939,2]
[323623664,1714143054282,-500.0,0.00011939,2]
[323623665,1714143054302,-500.0,0.00011939,2]
[323623666,1714143054324,-500.0,0.00011939,2]
[323623667,1714143054345,-959.65,0.00011939,2]
[323623668,1714143054367,-500.0,0.00011939,2]
[323623669,1714143054388,-500.0,0.00011939,2]
[323623670,1714143054411,-500.0,0.00011939,2]
[323623671,1714143054432,-500.0,0.00011939,2]
[323623672,1714143054449,-500.0,0.00011939,2]
[323623673,1714143054458,-589.32,0.00011939,2]
[323623674,1714143054468,-500.0,0.00011939,2]
[323623675,1714143054478,-500.0,0.00011939,2]
[323623676,1714143054490,-685.52,0.00011939,2]
[323623677,1714143054500,-500.0,0.00011939,2]
[323623678,1714143054510,-500.0,0.00011939,2]
[323623679,1714143054519,-500.0,0.00011939,2]
[323623680,1714143054528,-1260.5,0.00011939,2]
[323623681,1714143054538,-500.0,0.00011939,2]
[323623682,1714143054547,-500.0,0.00011939,2]
[323623683,1714143054557,-500.0,0.00011939,2]
[323623684,1714143054567,-500.0,0.00011939,2]
[323623685,1714143054576,-878.06554932,0.0001197,2]
[323623686,1714143054587,-55101.78,0.0001197,3]
[323623687,1714143054596,-307.039782,0.0001197,2]
[323623688,1714143054605,-307.039782,0.0001197,2]
[323623689,1714143054614,-156.46335484,0.00011972,2]
[323623690,1714143054624,-530.2508859,0.0001199,2]
[323623691,1714143054634,-400.2078416,0.0001199,2]
[323623692,1714143054643,-13251.2399112,0.0001199,2]
[323623693,1714143054653,-475.61715271,0.0001199,2]
[323623694,1714143054662,-678.8448491,0.0001199,2]
[323623695,1714143054673,-491.0678268,0.00011992,2]
[323623696,1714143054682,-451.8847677,0.00011992,2]
[323623697,1714143054692,-369.5580302,0.00011992,2]
[323623698,1714143054702,-338.9082187,0.00011992,2]
[323623699,1714143054712,-13824.5205031,0.00011992,2]
[323623700,1714143054721,-14397.801095,0.00011992,2]
[323623701,1714143054730,-3206.6694668,0.00011998,2]
[323623702,1714143054741,-641.45,0.00011998,2]
[323623703,1714143054749,-325.7521165,0.00011998,2]
[323623704,1714143054758,-1008.93246297,0.00011998,2]
[323623705,1714143054768,-6904.53820817,0.00011998,2]
[323623706,1714143054779,-205.09669917,0.00011999,2]
[323623707,1714143054789,-5846.4142757,0.00011999,2]
[323623708,1714143054799,-717.42,0.00011999,2]
[323623709,1714143054809,-717.42,0.00011999,2]
[323623710,1714143054820,-717.42,0.00011999,2]
[323623711,1714143054830,-717.42,0.00011999,2]
[323623712,1714143054839,-717.42,0.00011999,2]
[323623713,1714143054848,-717.42,0.00011999,2]
[323623714,1714143054858,-717.42,0.00011999,2]
[323623715,1714143054867,-717.42,0.00011999,2]
[323623716,1714143054877,-717.42,0.00011999,2]
[323623717,1714143054887,-717.42,0.00011999,2]
[323623718,1714143054897,-717.42,0.00011999,2]
[323623719,1714143054906,-717.42,0.00011999,2]
[323623720,1714143054916,-717.42,0.00011999,2]
[323623721,1714143054925,-717.42,0.00011999,2]
[323623722,1714143054934,-717.42,0.00011999,2]
[323623723,1714143054943,-717.54636583,0.00011999,2]
[323623724,1714143054953,-2576.0,0.00012,2]
[323623725,1714143054964,-3179598.96787894,0.00012,5]
[323623726,1714143054973,-5000.0,0.00012,2]
[323623727,1714143054982,-209038.02357843,0.00012,2]
[323623728,1714143054993,-1000.0,0.00012,2]
[323623729,1714143055003,-1748.09424184,0.00012,2]
[323623730,1714143055012,-13584.0,0.00012,2]
[323623731,1714143055021,-300.0,0.00012,2]
[323623732,1714143055035,-672.27804767,0.00012,2]
[323623733,1714143055053,-150.54,0.00012,2]
[323623734,1714143055067,-14799.42193898,0.00012,2]
[323623735,1714143055082,-307.039782,0.00012,2]
[323623736,1714143055098,-307.039782,0.00012,2]
[323623737,1714143055114,-1404.314102,0.00012,2]
[323623738,1714143055129,-1404.314102,0.00012,2]
[323623739,1714143055142,-330.5443247,0.00012,2]
[323623740,1714143055158,-162.8,0.00012,5]
[323623741,1714143055172,-1394.0,0.00012014,2]
[323623742,1714143055187,-974.603,0.00012014,2]
[323623743,1714143055199,-462.0,0.00012014,2]
[323623744,1714143055215,-2297.0,0.00012014,2]
[323623745,1714143055230,-1228.0,0.00012014,2]
[323623746,1714143055246,-1257.0,0.00012014,2]
[323623747,1714143055261,-541.0,0.00012014,2]
[323623748,1714143055275,-610.0,0.00012014,2]
[323623749,1714143055291,-437.0,0.00012014,2]
[323623750,1714143055309,-807.0,0.00012014,2]
[323623751,1714143055321,-1938.0,0.00012014,2]
[323623752,1714143055332,-1477.493,0.00012014,2]
[323623753,1714143055345,-399.0,0.00012014,2]
[323623754,1714143055358,-151.174,0.00012014,2]
[323623755,1714143055375,-3130.0,0.00012014,2]
[323623756,1714143055386,-2446.0,0.00012014,2]
[323623757,1714143055398,-1640.0,0.00012014,2]
[323623758,1714143055412,-151.043,0.00012014,2]
[323623759,1714143055426,-217.0,0.00012014,2]
[323623760,1714143055439,-443.0,0.00012014,2]
[323623761,1714143055452,-1140.0,0.00012014,2]
[323623762,1714143055465,-2290.0,0.00012014,2]
[323623763,1714143055477,-5731.0,0.00012014,2]
[323623764,1714143055495,-5894.0,0.00012014,2]
[323623765,1714143055508,-37702.0,0.00012014,2]
[323623766,1714143055521,-1055.0,0.00012014,2]
[323623767,1714143055534,-206.33,0.0001203,2]
[323623768,1714143055546,-547.70050122,0.0001203,2]
[323623769,1714143055559,-500.0,0.0001203,2]
[323623770,1714143055572,-500.0,0.0001203,2]
[323623771,1714143055585,-500.0,0.0001203,2]
[323623772,1714143055598,-500.0,0.0001203,2]
[323623773,1714143055611,-500.0,0.0001203,2]
[323623774,1714143055624,-500.0,0.0001203,2]
[323623775,1714143055636,-1049.36,0.0001203,2]
[323623776,1714143055650,-500.0,0.0001203,2]
[323623777,1714143055663,-500.0,0.0001203,2]
[323623778,1714143055676,-500.0,0.0001203,2]
[323623779,1714143055689,-656.65,0.0001203,2]
[323623780,1714143055702,-500.0,0.0001203,2]
[323623781,1714143055715,-500.0,0.0001203,2]
[323623782,1714143055728,-515.41439948,0.0001203,2]
[323623783,1714143055747,-500.0,0.0001203,2]
[323623784,1714143055762,-500.0,0.0001203,2]
[323623785,1714143055775,-504.54181078,0.0001203,2]
[323623786,1714143055788,-1033.93,0.0001203,2]
[323623787,1714143055802,-500.0,0.0001203,2]
[323623788,1714143055814,-500.0,0.0001203,2]
[323623789,1714143055827,-500.0,0.0001203,2]
[323623790,1714143055841,-500.0,0.0001203,2]
[323623791,1714143055854,-294.8,0.0001203,2]
[323623792,1714143055867,-500.0,0.0001203,2]
[323623793,1714143055879,-500.0,0.0001203,2]
[323623794,1714143055893,-500.0,0.0001203,2]
[323623795,1714143055907,-505.32,0.0001203,2]
[323623796,1714143055920,-999.61,0.0001203,2]
[323623797,1714143055934,-277.25,0.0001203,2]
[323623798,1714143055947,-819.22,0.0001203,2]
[323623799,1714143055962,-246.67721248,0.0001203,2]
[323623800,1714143055974,-686.21,0.0001203,2]
[323623801,1714143055987,-500.0,0.0001203,2]
[323623802,1714143056000,-500.0,0.0001203,2]
[323623803,1714143056013,-500.0,0.0001203,2]
[323623804,1714143056027,-500.0,0.0001203,2]
[323623805,1714143056041,-500.0,0.0001203,2]
[323623806,1714143056054,-500.0,0.0001203,2]
[323623807,1714143056096,-500.0,0.0001203,2]
[323623808,1714143056109,-500.0,0.0001203,2]
[323623809,1714143056121,-500.0,0.0001203,2]
[323623810,1714143056134,-586.31,0.0001203,2]
[323623811,1714143056148,-500.0,0.0001203,2]
[323623812,1714143056162,-500.0,0.0001203,2]
[323623813,1714143056175,-500.0,0.0001203,2]
[323623814,1714143056188,-167.75,0.0001203,2]
[323623815,1714143056201,-500.0,0.0001203,2]
[323623816,1714143056214,-799.74,0.0001203,2]
[323623817,1714143056226,-500.0,0.0001203,2]
[323623818,1714143056242,-500.0,0.0001203,2]
[323623819,1714143056255,-942.96,0.0001203,2]
[323623820,1714143056268,-500.0,0.0001203,2]
[323623821,1714143056281,-500.0,0.0001203,2]
[323623822,1714143056294,-500.0,0.0001203,2]
[323623823,1714143056307,-504.02964686,0.0001203,2]
[323623824,1714143056319,-500.0,0.0001203,2]
[323623825,1714143056332,-1063.5,0.0001203,2]
[323623826,1714143056345,-500.0,0.0001203,2]
[323623827,1714143056359,-500.0,0.0001203,2]
[323623828,1714143056372,-599.12,0.0001203,2]
[323623829,1714143056386,-500.0,0.0001203,2]
[323623830,1714143056398,-502.6754843,0.0001203,2]
[323623831,1714143056411,-504.11729366,0.0001203,2]
[323623832,1714143056424,-500.0,0.0001203,2]
[323623833,1714143056437,-630.17,0.0001203,2]
[323623834,1714143056451,-500.0,0.0001203,2]
[323623835,1714143056463,-500.0,0.0001203,2]
[323623836,1714143056476,-782.17,0.0001203,2]
[323623837,1714143056490,-723.08,0.0001203,2]
[323623838,1714143056503,-500.0,0.0001203,2]
[323623839,1714143056515,-500.0,0.0001203,2]
[323623840,1714143056528,-948.16,0.0001203,2]
[323623841,1714143056541,-916.54,0.0001203,2]
[323623842,1714143056554,-500.0,0.0001203,2]
[323623843,1714143056567,-500.0,0.0001203,2]
[323623844,1714143056581,-500.0,0.0001203,2]
[323623845,1714143056596,-500.0,0.0001203,2]
[323623846,1714143056611,-500.0,0.0001203,2]
[323623847,1714143056627,-500.0,0.0001203,2]
[323623848,1714143056642,-500.0,0.0001203,2]
[323623849,1714143056658,-500.0,0.0001203,2]
[323623850,1714143056672,-500.0,0.0001203,2]
[323623851,1714143056686,-965.48,0.0001203,2]
[323623852,1714143056702,-500.0,0.0001203,2]
[323623853,1714143056717,-500.0,0.0001203,2]
[323623854,1714143056731,-500.0,0.0001203,2]
[323623855,1714143056752,-787.28,0.0001203,2]
[323623856,1714143056768,-500.0,0.0001203,2]
[323623857,1714143056787,-500.0,0.0001203,2]
[323623858,1714143056803,-500.0,0.0001203,2]
[323623859,1714143056814,-500.0,0.0001203,2]
[323623860,1714143056824,-500.0,0.0001203,2]
[323623861,1714143056834,-500.0,0.0001203,2]
[323623862,1714143056843,-781.02,0.0001203,2]
[323623863,1714143057113,-500.0,0.0001203,2]
[323623864,1714143057142,-500.0,0.0001203,2]
[323623865,1714143057153,-500.0,0.0001203,2]
[323623866,1714143057165,-500.0,0.0001203,2]
[323623867,1714143057174,-500.0,0.0001203,2]
[323623868,1714143057184,-500.0,0.0001203,2]
[323623869,1714143057193,-500.0,0.0001203,2]
[323623870,1714143057203,-500.0,0.0001203,2]
[323623871,1714143057212,-500.0,0.0001203,2]
[323623872,1714143057221,-500.0,0.0001203,2]
[323623873,1714143057232,-500.0,0.0001203,2]
[323623874,1714143057245,-682.48,0.0001203,2]
[323623875,1714143057254,-500.0,0.0001203,2]
[323623876,1714143057263,-954.82,0.0001203,2]
[323623877,1714143057273,-500.0,0.0001203,2]
[323623878,1714143057281,-1404.314102,0.0001203,2]
[323623879,1714143057290,-1404.314102,0.0001203,2]
[323623880,1714143057299,-500.0,0.0001203,2]
[323623881,1714143057309,-500.0,0.0001203,2]
[323623882,1714143057320,-500.0,0.0001203,2]
[323623883,1714143057329,-500.0,0.0001203,2]
[323623884,1714143057339,-500.0,0.0001203,2]
[323623885,1714143057348,-808.28,0.0001203,2]
[323623886,1714143057358,-500.0,0.0001203,2]
[323623887,1714143057367,-500.0,0.0001203,2]
[323623888,1714143057376,-500.0,0.0001203,2]
[323623889,1714143057385,-500.0,0.0001203,2]
[323623890,1714143057394,-1168.43,0.0001203,2]
[323623891,1714143057403,-787.7,0.0001203,2]
[323623892,1714143057413,-166.01,0.00012033,2]
[323623893,1714143057422,-210.0,0.0001205,2]
[323623894,1714143057431,-215.0,0.0001205,2]
[323623895,1714143057440,-14799.42193898,0.000121,2]
[323623896,1714143057450,-307.039782,0.000121,2]
[323623897,1714143057459,-307.039782,0.000121,2]
[323623898,1714143057469,-514.0,0.00012109,2]
[323623899,1714143057478,-1364.0,0.00012109,2]
[323623900,1714143057490,-371.1602485,0.00012131,2]
[323623901,1714143057499,-501.81094565,0.00012131,2]
[323623902,1714143057508,-500.0,0.00012131,2]
[323623903,1714143057517,-500.0,0.00012131,2]
[323623904,1714143057526,-500.0,0.00012131,2]
[323623905,1714143057535,-506.40909282,0.00012131,2]
[323623906,1714143057544,-500.0,0.00012131,2]
[323623907,1714143057553,-500.0,0.00012131,2]
[323623908,1714143057562,-500.0,0.00012131,2]
[323623909,1714143057571,-495.56012153,0.00012131,2]
[323623910,1714143057580,-500.0,0.00012131,2]
[323623911,1714143057590,-500.0,0.00012131,2]
[323623912,1714143057599,-500.0,0.00012131,2]
[323623913,1714143057608,-500.0,0.00012131,2]
[323623914,1714143057617,-500.0,0.00012131,2]
[323623915,1714143057626,-500.0,0.00012131,2]
[323623916,1714143057635,-500.0,0.00012131,2]
[323623917,1714143057644,-325.55482395,0.00012131,2]
[323623918,1714143057653,-500.0,0.00012131,2]
[323623919,1714143057662,-500.0,0.00012131,2]
[323623920,1714143057672,-558.17439042,0.00012131,2]
[323623921,1714143057681,-200.29776498,0.00012131,10]
[323623922,1714143057690,-512.35715823,0.00012131,2]
[323623923,1714143057699,-500.0,0.00012131,2]
[323623924,1714143057708,-500.0,0.00012131,2]
[323623925,1714143057718,-500.0,0.00012131,2]
[323623926,1714143057727,-500.0,0.00012131,2]
[323623927,1714143057738,-500.0,0.00012131,2]
[323623928,1714143057748,-500.0,0.00012131,2]
[323623929,1714143057758,-500.0,0.00012131,2]
[323623930,1714143057768,-500.0,0.00012131,2]
[323623931,1714143057778,-500.0,0.00012131,2]
[323623932,1714143057788,-593.45158469,0.00012131,2]
[323623933,1714143057797,-254.45203655,0.00012131,2]
[323623934,1714143057807,-500.0,0.00012131,2]
[323623935,1714143057817,-551.89551308,0.00012131,2]
[323623936,1714143057827,-504.13424847,0.00012131,2]
[323623937,1714143057837,-500.0,0.00012131,2]
[323623938,1714143057846,-500.0,0.00012131,2]
[323623939,1714143057856,-169.46280653,0.00012131,2]
[323623940,1714143057866,-503.15550049,0.00012131,2]
[323623941,1714143057875,-504.03411796,0.00012131,2]
[323623942,1714143057885,-500.0,0.00012131,2]
[323623943,1714143057894,-530.65981341,0.00012131,2]
[323623944,1714143057904,-500.0,0.00012131,2]
[323623945,1714143057914,-508.39020251,0.00012141,2]
[323623946,1714143057923,-500.0,0.00012141,2]
[323623947,1714143057933,-500.0,0.00012141,2]
[323623948,1714143057943,-565.97,0.00012141,2]
[323623949,1714143057952,-931.37,0.00012141,2]
[323623950,1714143057961,-882.3,0.00012141,2]
[323623951,1714143057970,-501.84892442,0.00012141,2]
[323623952,1714143057979,-500.0,0.00012141,2]
[323623953,1714143057992,-500.0,0.00012141,2]
[323623954,1714143058002,-500.0,0.00012141,2]
[323623955,1714143058011,-556.07,0.00012141,2]
[323623956,1714143058021,-547.59,0.00012141,2]
[323623957,1714143058030,-500.0,0.00012141,2]
[323623958,1714143058041,-500.0,0.00012141,2]
[323623959,1714143058051,-500.0,0.00012141,2]
[323623960,1714143058061,-500.0,0.00012141,2]
[323623961,1714143058070,-500.0,0.00012141,2]
[323623962,1714143058079,-500.0,0.00012141,2]
[323623963,1714143058088,-500.0,0.00012141,2]
[323623964,1714143058097,-500.0,0.00012141,2]
[323623965,1714143058107,-500.0,0.00012141,2]
[323623966,1714143058116,-777.88,0.00012141,2]
[323623967,1714143058125,-500.0,0.00012141,2]
[323623968,1714143058134,-399.71234434,0.00012141,2]
[323623969,1714143058143,-500.0,0.00012141,2]
[323623970,1714143058154,-500.0,0.00012141,2]
[323623971,1714143058163,-500.0,0.00012141,2]
[323623972,1714143058175,-1047.45,0.00012141,2]
[323623973,1714143058185,-500.0,0.00012141,2]
[323623974,1714143058194,-794.44,0.00012141,2]
[323623975,1714143058204,-627.1,0.00012141,2]
[323623976,1714143058213,-500.0,0.00012141,2]
[323623977,1714143058222,-919.78,0.00012141,2]
[323623978,1714143058232,-806.04,0.00012141,2]
[323623979,1714143058244,-500.0,0.00012141,2]
[323623980,1714143058254,-500.0,0.00012141,2]
[323623981,1714143058264,-500.0,0.00012141,2]
[323623982,1714143058273,-500.0,0.00012141,2]
[323623983,1714143058282,-500.0,0.00012141,2]
[323623984,1714143058292,-500.0,0.00012141,2]
[323623985,1714143058301,-500.0,0.00012141,2]
[323623986,1714143058312,-694.55,0.00012141,2]
[323623987,1714143058322,-732.31,0.00012141,2]
[323623988,1714143058332,-500.0,0.00012141,2]
[323623989,1714143058341,-500.0,0.00012141,2]
[323623990,1714143058350,-500.0,0.00012141,2]
[323623991,1714143058359,-684.0,0.00012141,2]
[323623992,1714143058369,-500.0,0.00012141,2]
[323623993,1714143058380,-583.92,0.00012141,2]
[323623994,1714143058390,-500.0,0.00012141,2]
[323623995,1714143058399,-500.0,0.00012141,2]
[323623996,1714143058409,-984.02,0.00012141,2]
[323623997,1714143058418,-1020.45,0.00012141,2]
[323623998,1714143058427,-500.0,0.00012141,2]
[323623999,1714143058436,-500.0,0.00012141,2]
[323624000,1714143058445,-716.55,0.00012141,2]
[323624001,1714143058454,-500.0,0.00012141,2]
[323624002,1714143058463,-696.67,0.00012141,2]
[323624003,1714143058472,-500.0,0.00012141,2]
[323624004,1714143058481,-246.65,0.00012141,2]
[323624005,1714143058492,-500.0,0.00012141,2]
[323624006,1714143058501,-500.0,0.00012141,2]
[323624007,1714143058509,-525.86,0.00012141,2]
[323624008,1714143058518,-500.0,0.00012141,2]
[323624009,1714143058527,-500.0,0.00012141,2]
[323624010,1714143058537,-500.0,0.00012141,2]
[323624011,1714143058546,-500.0,0.00012141,2]
[323624012,1714143058555,-500.0,0.00012141,2]
[323624013,1714143058564,-500.0,0.00012141,2]
[323624014,1714143058573,-768.71,0.00012141,2]
[323624015,1714143058582,-428.22,0.00012143,2]
[323624016,1714143058592,-456.4672015,0.00012173,2]